fUST/lending_fUST_20260326
["ID","MTS","AMOUNT","RATE_DAILY","PERIOD"]
[4315,1774477847662,-543.8308325,8.091e-05,2]
[4316,1774477847672,-543.8308325,8.091e-05,2]
[4317,1774477847682,-543.8308325,8.091e-05,2]
[4318,1774477847693,-543.8308325,8.091e-05,2]
[4319,1774477847703,-543.8308325,8.091e-05,2]
[4320,1774477847713,-543.8308325,8.091e-05,2]
[4321,1774477847724,-543.8308325,8.091e-05,2]
[4322,1774477847734,-543.8308325,8.091e-05,2]
[4323,1774477847744,-543.8308325,8.091e-05,2]
[4324,1774477847754,-543.8308325,8.091e-05,2]
[4325,1774477847765,-543.8308325,8.091e-05,2]
[4326,1774477847775,-543.8308325,8.091e-05,2]
[4327,1774477847785,-543.8308325,8.091e-05,2]
[4328,1774477847795,-543.8308325,8.091e-05,2]
[4329,1774477847805,-543.8308325,8.091e-05,2]
[4330,1774477847817,-543.8308325,8.091e-05,2]
[4331,1774477847827,-543.8308325,8.091e-05,2]
[4332,1774477847838,-543.8308325,8.091e-05,2]
[4333,1774477847848,-543.8308325,8.091e-05,2]
[4334,1774477847859,-543.8308325,8.091e-05,2]
[4335,1774477847870,-543.8308325,8.091e-05,2]
[4336,1774477847881,-543.8308325,8.091e-05,2]
[4337,1774477847891,-543.8308325,8.091e-05,2]
[4338,1774477847902,-543.8308325,8.091e-05,2]
[4339,1774477847912,-543.8308325,8.091e-05,2]
[4340,1774477847924,-543.8308325,8.091e-05,2]
[4341,1774477847935,-543.8308325,8.091e-05,2]
[4342,1774477847946,-543.8308325,8.091e-05,2]
[4343,1774477847958,-543.8308325,8.091e-05,2]
[4344,1774477847971,-543.8308325,8.091e-05,2]
[4345,1774477847983,-543.8308325,8.091e-05,2]
[4346,1774477847996,-543.8308325,8.091e-05,2]
[4347,1774477848007,-543.8308325,8.091e-05,2]
[4348,1774477848017,-543.8308325,8.091e-05,2]
[4349,1774477848027,-898.54202585,8.091e-05,2]
[4350,1774477848037,-898.54202585,8.091e-05,2]
[4351,1774477848047,-898.54202585,8.091e-05,2]
[4352,1774477848057,-898.54202585,8.091e-05,2]
[4353,1774477848067,-500.0,8.091e-05,2]
[4354,1774477848076,-898.54202585,8.091e-05,2]
[4355,1774477848086,-898.54202585,8.091e-05,2]
[4356,1774477848096,-500.0,8.091e-05,2]
[4357,1774477848106,-898.54202585,8.091e-05,2]
[4358,1774477848116,-898.54202585,8.091e-05,2]
[4359,1774477848125,-898.54202585,8.091e-05,2]
[4360,1774477848136,-620.24526078,8.091e-05,2]
[4361,1774477848147,-552.17152386,8.091e-05,2]
[4362,1774477848158,-898.54202585,8.091e-05,2]
[4363,1774477848167,-620.24526078,8.091e-05,2]
[4364,1774477848177,-898.54202585,8.091e-05,2]
[4365,1774477848187,-620.24526078,8.091e-05,2]
[4366,1774477848199,-898.54202585,8.091e-05,2]
[4367,1774477848237,-620.24526078,8.091e-05,2]
[4368,1774477848250,-620.24526078,8.091e-05,2]
[4369,1774477848262,-898.54202585,8.091e-05,2]
[4370,1774477848272,-620.24526078,8.091e-05,2]
[4371,1774477848283,-620.24526078,8.091e-05,2]
[4372,1774477848293,-898.54202585,8.091e-05,2]
[4373,1774477848304,-620.24526078,8.091e-05,2]
[4374,1774477848315,-620.24526078,8.091e-05,2]
[4375,1774477848325,-898.54202585,8.091e-05,2]
[4376,1774477848334,-620.24526078,8.091e-05,2]
[4377,1774477848344,-898.54202585,8.091e-05,2]
[4378,1774477848354,-620.24526078,8.091e-05,2]
[4379,1774477848364,-620.24526078,8.091e-05,2]
[4380,1774477848374,-898.54202585,8.091e-05,2]
[4381,1774477848384,-620.24526078,8.091e-05,2]
[4382,1774477848393,-898.54202585,8.091e-05,2]
[4383,1774477848403,-620.24526078,8.091e-05,2]
[4384,1774477848413,-898.54202585,8.091e-05,2]
[4385,1774477848423,-620.24526078,8.091e-05,2]
[4386,1774477848433,-898.54202585,8.091e-05,2]
[4387,1774477848443,-620.24526078,8.091e-05,2]
[4388,1774477848452,-898.54202585,8.091e-05,2]
[4389,1774477848462,-620.24526078,8.091e-05,2]
[4390,1774477848472,-898.54202585,8.091e-05,2]
[4391,1774477848482,-620.24526078,8.091e-05,2]
[4392,1774477848492,-898.54202585,8.091e-05,2]
[4393,1774477848502,-620.24526078,8.091e-05,2]
[4394,1774477848512,-898.54202585,8.091e-05,2]
[4395,1774477848521,-620.24526078,8.091e-05,2]
[4396,1774477848531,-898.54202585,8.091e-05,2]
[4397,1774477848541,-620.24526078,8.091e-05,2]
[4398,1774477848551,-898.54202585,8.091e-05,2]
[4399,1774477848560,-620.24526078,8.091e-05,2]
[4400,1774477848570,-620.24526078,8.091e-05,2]
[4401,1774477848580,-898.54202585,8.091e-05,2]
[4402,1774477848589,-620.24526078,8.091e-05,2]
[4403,1774477848599,-898.54202585,8.091e-05,2]
[4404,1774477848609,-620.24526078,8.091e-05,2]
[4405,1774477848619,-898.54202585,8.091e-05,2]
[4406,1774477848629,-620.24526078,8.091e-05,2]
[4407,1774477848639,-898.54202585,8.091e-05,2]
[4408,1774477848648,-620.24526078,8.091e-05,2]
[4409,1774477848658,-898.54202585,8.091e-05,2]
[4410,1774477848668,-620.24526078,8.091e-05,2]
[4411,1774477848678,-898.54202585,8.091e-05,2]
[4412,1774477848687,-620.24526078,8.091e-05,2]
[4413,1774477848697,-898.54202585,8.091e-05,2]
[4414,1774477848707,-898.54202585,8.091e-05,2]
[4415,1774477848718,-620.24526078,8.091e-05,2]
[4416,1774477848727,-620.24526078,8.091e-05,2]
[4417,1774477848738,-898.54202585,8.091e-05,2]
[4418,1774477848748,-620.24526078,8.091e-05,2]
[4419,1774477848759,-898.54202585,8.091e-05,2]
[4420,1774477848769,-620.24526078,8.091e-05,2]
[4421,1774477848780,-898.54202585,8.091e-05,2]
[4422,1774477848790,-620.24526078,8.091e-05,2]
[4423,1774477848800,-898.54202585,8.091e-05,2]
[4424,1774477848837,-620.24526078,8.091e-05,2]
[4425,1774477848850,-898.54202585,8.091e-05,2]
[4426,1774477848861,-898.54202585,8.091e-05,2]
[4427,1774477848871,-620.24526078,8.091e-05,2]
[4428,1774477848882,-620.24526078,8.091e-05,2]
[4429,1774477848892,-620.24526078,8.091e-05,2]
[4430,1774477848903,-898.54202585,8.091e-05,2]
[4431,1774477848914,-620.24526078,8.091e-05,2]
[4432,1774477848925,-620.24526078,8.091e-05,2]
[4433,1774477848935,-898.54202585,8.091e-05,2]
[4434,1774477848946,-620.24526078,8.091e-05,2]
[4435,1774477848957,-898.54202585,8.091e-05,2]
[4436,1774477848967,-620.24526078,8.091e-05,2]
[4437,1774477848977,-898.54202585,8.091e-05,2]
[4438,1774477848988,-620.24526078,8.091e-05,2]
[4439,1774477848997,-898.54202585,8.091e-05,2]
[4440,1774477849007,-620.24526078,8.091e-05,2]
[4441,1774477849018,-898.54202585,8.091e-05,2]
[4442,1774477849027,-898.54202585,8.091e-05,2]
[4443,1774477849037,-166.49395691,8.091e-05,2]
[4444,1774477849059,-453.75130387,8.091e-05,2]
[4445,1774477849068,-620.24526078,8.091e-05,2]
[4446,1774477849078,-898.54202585,8.091e-05,2]
[4447,1774477849088,-620.24526078,8.091e-05,2]
[4448,1774477849097,-620.24526078,8.091e-05,2]
[4449,1774477849107,-620.24526078,8.091e-05,2]
[4450,1774477849127,-620.24526078,8.091e-05,2]
[4451,1774477849143,-448.54653557,8.091e-05,2]
[4454,1774478129329,168.740303,6.551e-05,120]
[4473,1774478779529,-3903.9141039,5.52e-05,2]
[4474,1774478779557,-5000.0,5.984e-05,2]
[4475,1774478779584,-300.0,6.042e-05,2]
[4476,1774478779610,-1200.0,6.043e-05,2]
[4477,1774478779635,-5000.0,6.044e-05,2]
[4478,1774478779661,-300.0,6.101e-05,2]
[4479,1774478779726,-300.0,6.102e-05,2]
[4480,1774478779751,-300.0,6.102e-05,2]
[4481,1774478779776,-1193.0,6.104e-05,2]
[4482,1774478779801,-5000.0,6.105e-05,2]
[4483,1774478779826,-511.0,6.357e-05,2]
[4484,1774478779852,-168.740303,6.551e-05,2]
[4485,1774478779879,-168.740303,6.551e-05,31]
[4486,1774478779904,-168.740303,6.551e-05,61]
[4487,1774478779931,-168.740303,6.551e-05,90]
[4488,1774478779957,-300.0,6.615e-05,2]
[4489,1774478779984,-300.0,6.615e-05,2]
[4490,1774478780010,-300.0,6.615e-05,2]
[4491,1774478780035,-300.0,6.615e-05,2]
[4492,1774478780061,-300.0,6.615e-05,2]
[4493,1774478780092,-300.0,6.615e-05,2]
[4494,1774478780117,-300.0,6.615e-05,2]
[4495,1774478780143,-300.0,6.615e-05,2]
[4496,1774478780171,-300.0,6.615e-05,2]
[4497,1774478780197,-300.0,6.615e-05,2]
[4498,1774478780224,-300.0,6.615e-05,2]
[4499,1774478780284,-300.0,6.615e-05,2]
[4500,1774478780312,-300.0,6.615e-05,2]
[4501,1774478780339,-300.0,6.615e-05,2]
[4502,1774478780366,-300.0,6.615e-05,2]
[4503,1774478780392,-158.32022274,6.62e-05,2]
[4504,1774478780416,-258.39585622,6.62e-05,2]
[4505,1774478780441,-500.0,6.62e-05,2]
[4506,1774478780466,-500.0,6.62e-05,2]
[4507,1774478780492,-500.0,6.62e-05,2]
[4508,1774478780517,-500.0,6.62e-05,2]
[4509,1774478780561,-249.25391243,6.62e-05,2]
[4510,1774478780610,-500.0,6.62e-05,2]
[4511,1774478780651,-500.0,6.62e-05,2]
[4512,1774478780699,-500.0,6.62e-05,2]
[4513,1774478780736,-500.34075126,6.62e-05,2]
[4514,1774478780780,-500.0,6.62e-05,2]
[4515,1774478780817,-500.0,6.62e-05,2]
[4516,1774478780855,-500.0,6.62e-05,2]
[4517,1774478780892,-500.0,6.62e-05,2]
[4518,1774478780976,-500.0,6.62e-05,2]
[4519,1774478781004,-420.0,6.646e-05,2]
[4520,1774478781029,-1680.0,6.647e-05,2]
[4522,1774478781054,-420.0,6.711e-05,2]
[4524,1774478781078,-420.0,6.712e-05,2]
[4526,1774478781102,-420.0,6.712e-05,2]
[4528,1774478781126,-600.0,6.746e-05,2]
[4530,1774478781150,-5789.91189649,6.756e-05,2]
[4532,1774478781175,-890.90204496,7.066e-05,2]
[4705,1774478937423,1064.61,7.6e-05,120]
[4736,1774479032357,1644.60044379,3e-05,10]
[4741,1774479032601,-296.93885621,3e-05,10]
[4743,1774479032611,-1200.0,6.718e-05,2]
[4745,1774479032620,-285.97807312,6.719e-05,2]
[4839,1774479041848,-4714.02192688,6.719e-05,2]
[4840,1774479041857,-515.0,6.719e-05,2]
[4841,1774479041866,-5000.0,6.787e-05,2]
[4842,1774479041875,-300.0,6.855e-05,2]
[4843,1774479041884,-300.0,6.855e-05,2]
[4844,1774479041894,-300.0,6.855e-05,2]
[4845,1774479041903,-300.0,6.855e-05,2]
[4846,1774479041912,-5000.0,6.856e-05,2]
[4848,1774479041922,-327.17971734,7.066e-05,2]
[4849,1774479041932,-6889.100769,7.104e-05,2]
[4850,1774479041941,-1000.0,7.168e-05,2]
[4851,1774479041951,-300.0,7.206e-05,2]
[4852,1774479041960,-300.0,7.206e-05,2]
[4854,1774479041979,-300.0,7.206e-05,2]
[4855,1774479041988,-300.0,7.206e-05,2]
[4856,1774479041997,-300.0,7.206e-05,2]
[4857,1774479042006,-300.0,7.206e-05,2]
[4858,1774479042015,-300.0,7.206e-05,2]
[4859,1774479042025,-300.0,7.206e-05,2]
[4860,1774479042034,-300.0,7.206e-05,2]
[4861,1774479042044,-300.0,7.206e-05,2]
[4862,1774479042053,-300.0,7.206e-05,2]
[4863,1774479042095,-300.0,7.206e-05,2]
[4864,1774479042105,-300.0,7.206e-05,2]
[4865,1774479042114,-300.0,7.206e-05,2]
[4866,1774479042123,-500.0,7.21e-05,2]
[4867,1774479042132,-500.0,7.21e-05,2]
[4868,1774479042141,-500.0,7.21e-05,2]
[4869,1774479042151,-500.0,7.21e-05,2]
[4870,1774479042160,-500.0,7.21e-05,2]
[4871,1774479042170,-500.0,7.21e-05,2]
[4872,1774479042179,-500.0,7.21e-05,2]
[4873,1774479042188,-500.0,7.21e-05,2]
[4874,1774479042200,-500.0,7.21e-05,2]
[4875,1774479042209,-500.0,7.21e-05,2]
[4876,1774479042219,-160.12159169,7.21e-05,2]
[4877,1774479042228,-160.12123714,7.21e-05,2]
[4878,1774479042238,-160.11454894,7.21e-05,2]
[4879,1774479042247,-257.52356059,7.21e-05,2]
[4880,1774479042257,-160.12461799,7.21e-05,2]
[4881,1774479042266,-158.11972113,7.21e-05,2]
[4882,1774479042276,-158.11285615,7.21e-05,2]
[4883,1774479042286,-514.17540579,7.21e-05,2]
[4884,1774479042295,-500.0,7.21e-05,2]
[4885,1774479042304,-500.0,7.21e-05,2]
[4886,1774479042313,-600.0,7.31e-05,2]
[4887,1774479042322,-1680.0,7.39e-05,2]
[4888,1774479042342,-6889.100769,7.403e-05,2]
[4889,1774479042361,-420.0,7.541e-05,2]
[4890,1774479042379,-420.0,7.541e-05,2]
[4891,1774479042399,-420.0,7.541e-05,2]
[4893,1774479042420,-500.0,7.701e-05,2]
[4894,1774479042435,-500.0,7.701e-05,2]
[4896,1774479042449,-500.0,7.701e-05,2]
[4899,1774479042468,-500.0,7.701e-05,2]
[4902,1774479042486,-500.0,7.701e-05,2]
[4905,1774479042503,-224.63502651,7.701e-05,2]
[4908,1774479042515,-500.0,7.701e-05,2]
[4910,1774479042531,-500.0,7.701e-05,2]
[4913,1774479042551,-500.0,7.701e-05,2]
[4916,1774479042566,-500.0,7.701e-05,2]
[4918,1774479042578,-500.0,7.701e-05,2]
[4921,1774479042592,-500.0,7.701e-05,2]
[4923,1774479042605,-500.0,7.701e-05,2]
[4926,1774479042619,-500.0,7.701e-05,2]
[4928,1774479042632,-500.0,7.701e-05,2]
[4931,1774479042646,-500.0,7.701e-05,2]
[4933,1774479042659,-500.0,7.701e-05,2]
[4936,1774479042672,-500.0,7.701e-05,2]
[4938,1774479042685,-500.0,7.701e-05,2]
[4941,1774479042698,-500.0,7.701e-05,2]
[4943,1774479042712,-500.0,7.701e-05,2]
[4950,1774479042765,-500.0,7.701e-05,2]
[4952,1774479042774,-500.0,7.701e-05,2]
[4954,1774479042786,-500.0,7.701e-05,2]
[4955,1774479042795,-350.0,7.701e-05,2]
[4958,1774479042804,-500.0,7.701e-05,2]
[4959,1774479042813,-500.0,7.701e-05,2]
[4962,1774479042823,-500.0,7.701e-05,2]
[4963,1774479042832,-500.0,7.701e-05,2]
[4965,1774479042841,-500.0,7.701e-05,2]
[4967,1774479042850,-608.107076,7.701e-05,2]
[4969,1774479042859,-500.0,7.701e-05,2]
[4971,1774479042867,-500.0,7.701e-05,2]
[4973,1774479042876,-500.0,7.701e-05,2]
[4975,1774479042886,-500.0,7.701e-05,2]
[4977,1774479042895,-500.0,7.701e-05,2]
[4979,1774479042904,-500.0,7.701e-05,2]
[4981,1774479042914,-500.0,7.701e-05,2]
[4983,1774479042923,-500.0,7.701e-05,2]
[4985,1774479042932,-500.0,7.701e-05,2]
[4987,1774479042943,-500.0,7.701e-05,2]
[4989,1774479042952,-500.0,7.701e-05,2]
[4991,1774479042961,-500.0,7.701e-05,2]
[4993,1774479042970,-500.0,7.701e-05,2]
[4995,1774479042979,-500.0,7.701e-05,2]
[4997,1774479042989,-500.0,7.701e-05,2]
[4999,1774479042998,-500.0,7.701e-05,2]
[5002,1774479043008,-500.0,7.701e-05,2]
[5004,1774479043017,-500.0,7.701e-05,2]
[5006,1774479043027,-500.0,7.701e-05,2]
[5008,1774479043036,-500.0,7.701e-05,2]
[5010,1774479043046,-500.0,7.701e-05,2]
[5012,1774479043055,-500.0,7.701e-05,2]
[5013,1774479043064,-500.0,7.701e-05,2]
[5015,1774479043073,-500.0,7.701e-05,2]
[5017,1774479043082,-500.0,7.701e-05,2]
[5019,1774479043092,-500.0,7.701e-05,2]
[5022,1774479043100,-500.0,7.701e-05,2]
[5025,1774479043110,-6889.100769,7.702e-05,2]
[5029,1774479043119,-1500.0,7.716e-05,2]
[5033,1774479043128,-1000.0,7.758e-05,2]
[5037,1774479043137,-1000.0,7.758e-05,2]
[5041,1774479043147,-1000.0,7.758e-05,2]
[5046,1774479043157,-1000.0,7.758e-05,2]
[5049,1774479043166,-1000.0,7.758e-05,2]
[5052,1774479043176,-1000.0,7.758e-05,2]
[5055,1774479043185,-1000.0,7.758e-05,2]
[5058,1774479043195,-1000.0,7.758e-05,2]
[5060,1774479043204,-1000.0,7.758e-05,2]
[5062,1774479043214,-173.47096707,7.758e-05,2]
[5063,1774479043223,-1000.0,7.758e-05,2]
[5065,1774479043232,-1000.0,7.758e-05,2]
[5067,1774479043242,-9894.2017389,7.77e-05,2]
[5069,1774479043251,-9894.2017389,7.799e-05,2]
[5071,1774479043260,-9894.2017389,7.828e-05,2]
[5073,1774479043269,-9894.2017389,7.856e-05,2]
[5076,1774479043280,-300.0,7.863e-05,2]
[5077,1774479043289,-142656.76248419,7.863e-05,2]
[5080,1774479043307,-80711.57567238,7.863e-05,2]
[5082,1774479043316,-9894.2017389,7.885e-05,2]
[5084,1774479043325,-711582.0857857,7.885e-05,2]
[5086,1774479043337,-4369.70325648,7.885e-05,2]
[5172,1774479044120,-4740.16662601,7.885e-05,2]
[5174,1774479044131,-1050.59287838,7.885e-05,2]
[5187,1774479044271,-33534.4756702,7.885e-05,2]
[5188,1774479044293,-21913.67457599,7.885e-05,2]
[5190,1774479044304,-1226.05301822,7.885e-05,2]
[5238,1774479044830,-2275.38499025,7.885e-05,2]
[5484,1774479046933,-346.38830132,7.885e-05,2]
[5486,1774479046944,-5657.41345584,7.885e-05,2]
[5488,1774479046955,-1257.87188007,7.885e-05,2]
[5506,1774479047115,-14942.98633211,7.885e-05,2]
[5514,1774479047187,-2061.52235704,7.885e-05,2]
[5517,1774479047197,-71581.36261115,7.885e-05,2]
[6211,1774479623799,-1199.63090449,3.839e-05,2]
[6215,1774479791090,203.09696,1.675e-05,2]
[6216,1774479791365,96.90304,1.763e-05,2]
[6217,1774479791392,106.19392,1.763e-05,2]
[6218,1774479791566,193.80608,1.851e-05,2]
[6219,1774479791592,9.29088,1.851e-05,2]
[6220,1774479791978,203.09696,1.939e-05,2]
[6237,1774479806320,87.61216,2.01e-05,2]
[6238,1774479806349,300.0,2.01e-05,2]
[6239,1774479806413,300.0,2.01e-05,2]
[6240,1774479806439,300.0,2.01e-05,2]
[6241,1774479806464,300.0,2.01e-05,2]
[6242,1774479806492,300.0,2.01e-05,2]
[6243,1774479806519,300.0,2.01e-05,2]
[6244,1774479806546,300.0,2.01e-05,2]
[6245,1774479806572,300.0,2.01e-05,2]
[6246,1774479806601,300.0,2.01e-05,2]
[6247,1774479806630,300.0,2.01e-05,2]
[6248,1774479814316,5000.0,2.009e-05,2]
[6249,1774479822747,5000.0,2.009e-05,2]
[6250,1774479837216,5000.0,2.009e-05,2]
[6251,1774479845412,5000.0,2.009e-05,2]
[6252,1774479859905,5000.0,2.009e-05,2]
[6253,1774479867868,5000.0,2.009e-05,2]
[6254,1774479882367,5000.0,2.009e-05,2]
[6255,1774479890661,5000.0,2.009e-05,2]
[6256,1774479905536,5000.0,2.009e-05,2]
[6257,1774479913245,5000.0,2.009e-05,2]
[6258,1774479928310,2657.53919582,2.009e-05,2]
[6259,1774479936052,5000.0,2.009e-05,2]
[6260,1774479958316,5000.0,2.009e-05,2]
[6261,1774479980767,5000.0,2.009e-05,2]
[6262,1774479988717,5000.0,2.009e-05,2]
[6263,1774480004064,5000.0,2.009e-05,2]
[6264,1774480012267,5000.0,2.009e-05,2]
[6265,1774480027102,5000.0,2.009e-05,2]
[6266,1774480034789,5000.0,2.009e-05,2]
[6267,1774480050313,5000.0,2.009e-05,2]
[6268,1774480058027,5000.0,2.009e-05,2]
[6269,1774480072813,5000.0,2.009e-05,2]
[6270,1774480080536,5000.0,2.009e-05,2]
[6271,1774480095289,5000.0,2.009e-05,2]
[6272,1774480103506,5000.0,2.009e-05,2]
[6273,1774480118482,5000.0,2.009e-05,2]
[6274,1774480126264,5000.0,2.009e-05,2]
[6275,1774480141856,5000.0,2.009e-05,2]
[6284,1774480150480,5000.0,2.009e-05,2]
[6312,1774480165281,5000.0,2.009e-05,2]
[6334,1774480173175,5000.0,2.009e-05,2]
[6335,1774480188292,5000.0,2.009e-05,2]
[6336,1774480196016,5000.0,2.009e-05,2]
[6339,1774480211573,5000.0,2.009e-05,2]
[6340,1774480220152,5000.0,2.009e-05,2]
[6528,1774480235158,5000.0,2.009e-05,2]
[6556,1774480238035,-203.09696,2.027e-05,2]
[6557,1774480238044,-203.09696,2.115e-05,2]
[6558,1774480238053,-203.09696,2.203e-05,2]
[6559,1774480238063,-203.09696,2.292e-05,2]
[6560,1774480238105,-203.09696,2.38e-05,2]
[6561,1774480238115,-250.0,2.442e-05,2]
[6562,1774480238124,-203.09696,2.468e-05,2]
[6563,1774480238133,-203.09696,2.556e-05,2]
[6564,1774480238142,-203.09696,2.644e-05,2]
[6565,1774480238151,-203.09696,2.732e-05,2]
[6566,1774480238160,-203.09696,2.82e-05,2]
[6567,1774480238170,-203.09696,2.909e-05,2]
[6568,1774480238180,-203.09696,2.997e-05,2]
[6569,1774480238189,-203.09696,3.085e-05,2]
[6570,1774480238198,-203.09696,3.173e-05,2]
[6571,1774480238207,-203.09696,3.261e-05,2]
[6572,1774480238217,-203.09696,3.349e-05,2]
[6573,1774480238226,-206.1914707,3.878e-05,2]
[6574,1774480238235,-1200.0,3.913e-05,2]
[6575,1774480238245,-300.0,3.914e-05,2]
[6576,1774480238254,-300.0,3.914e-05,2]
[6577,1774480238263,-300.0,3.914e-05,2]
[6578,1774480238272,-300.0,3.914e-05,2]
[6579,1774480238281,-300.0,3.915e-05,2]
[6580,1774480238290,-300.0,3.915e-05,2]
[6581,1774480238300,-300.0,3.915e-05,2]
[6582,1774480238309,-300.0,3.915e-05,2]
[6583,1774480238319,-300.0,3.915e-05,2]
[6584,1774480238328,-300.0,3.915e-05,2]
[6585,1774480238337,-300.0,3.915e-05,2]
[6586,1774480238346,-300.0,3.915e-05,2]
[6587,1774480238366,-300.0,3.915e-05,2]
[6588,1774480238383,-300.0,3.915e-05,2]
[6589,1774480238401,-300.0,3.915e-05,2]
[6590,1774480238420,-300.0,3.915e-05,2]
[6591,1774480238440,-300.0,3.915e-05,2]
[6592,1774480238455,-300.0,3.915e-05,2]
[6593,1774480238468,-300.0,3.915e-05,2]
[6594,1774480238487,-500.0,3.915e-05,2]
[6595,1774480238505,-500.0,3.92e-05,2]
[6596,1774480238524,-500.0,3.92e-05,2]
[6597,1774480238537,-600.0,3.992e-05,2]
[6598,1774480238553,-1680.0,4.304e-05,2]
[6599,1774480238567,-420.0,4.305e-05,2]
[6600,1774480238585,-420.0,4.305e-05,2]
[6601,1774480238600,-420.0,4.305e-05,2]
[6602,1774480238612,-720.0,4.392e-05,2]
[6603,1774480238625,-826.42322921,4.468e-05,2]
[6604,1774480238638,-1000.0,4.468e-05,2]
[6605,1774480238651,-500.0,4.686e-05,2]
[6606,1774480238665,-500.0,4.686e-05,2]
[6607,1774480238678,-500.0,4.686e-05,2]
[6608,1774480238691,-156.05677293,4.686e-05,2]
[6609,1774480238705,-2351.0,4.735e-05,2]
[6610,1774480238717,-480.0,4.736e-05,2]
[6611,1774480238730,-587.0,4.736e-05,2]
[6612,1774480238744,-587.0,4.736e-05,2]
[6613,1774480238799,-500.0,4.813e-05,2]
[6614,1774480238808,-500.0,4.813e-05,2]
[6615,1774480238818,-158.12007075,4.813e-05,2]
[6616,1774480238827,-500.0,4.813e-05,2]
[6617,1774480238837,-500.0,4.813e-05,2]
[6618,1774480238846,-545.85996319,4.813e-05,2]
[6619,1774480238855,-500.0,4.813e-05,2]
[6620,1774480238864,-500.0,4.813e-05,2]
[6621,1774480238873,-500.0,4.813e-05,2]
[6622,1774480238883,-28357.68329889,4.83e-05,2]
[6625,1774480240752,-636.0975443,4.83e-05,2]
[6626,1774480240817,-3012.91813574,4.83e-05,2]
[6627,1774480240828,-2329.1941798,4.83e-05,2]
[6666,1774480243451,-5000.0,4.782e-05,2]
[6667,1774480243461,-2227.06744111,4.83e-05,2]
[6668,1774480243472,-22981.15373016,4.83e-05,2]
[6669,1774480243482,-864.0,4.831e-05,2]
[6670,1774480243491,-500.0,4.973e-05,2]
[6671,1774480243501,-500.0,4.973e-05,2]
[6672,1774480243510,-157.4863527,5e-05,2]
[6673,1774480243558,-500.0,5e-05,2]
[6674,1774480243569,-500.0,5e-05,2]
[6675,1774480243578,-500.0,5e-05,2]
[6676,1774480243587,-500.0,5e-05,2]
[6677,1774480243597,-500.0,5e-05,2]
[6678,1774480243607,-500.0,5e-05,2]
[6679,1774480243616,-500.0,5e-05,2]
[6680,1774480243625,-500.0,5e-05,2]
[6681,1774480243634,-500.0,5e-05,2]
[6682,1774480243643,-500.0,5e-05,2]
[6683,1774480243652,-500.0,5e-05,2]
[6684,1774480243661,-500.0,5e-05,2]
[6685,1774480243671,-500.0,5e-05,2]
[6686,1774480243680,-500.0,5e-05,2]
[6687,1774480243689,-500.0,5e-05,2]
[6688,1774480243698,-500.0,5e-05,2]
[6689,1774480243707,-500.0,5e-05,2]
[6690,1774480243716,-500.0,5e-05,2]
[6691,1774480243725,-500.0,5e-05,2]
[6692,1774480243734,-500.0,5e-05,2]
[6693,1774480243743,-500.0,5e-05,2]
[6694,1774480243752,-500.0,5e-05,2]
[6695,1774480243762,-500.0,5e-05,2]
[6696,1774480243772,-500.0,5e-05,2]
[6697,1774480243781,-500.0,5e-05,2]
[6698,1774480243790,-500.0,5e-05,2]
[6699,1774480243800,-500.0,5e-05,2]